{"text_format":"1","workbook":"xlsx","n_sheets":5,"sheets":["Schießkladde","Mannschaftswertung","Einzelwertung ","GefilterteRangliste","Info"],"not_rendered":{"charts":0,"images":0,"macros":1,"external_links":0,"defined_names":15,"comments":1,"pivot_tables":0},"unopened":[],"bounds":{"document_bytes":16777216,"sheet_cells":100000,"rows_first":2000,"rows_last":500,"rows_between":2000,"halvings":0,"cell_chars":16384,"cell_head_chars":4096},"cells_cut":0,"cells_raw":0,"read":"whole","date_system":"1900"}

{"sheet":"Schießkladde","index":0,"n_rows":102,"n_cols":60,"rows_kept":102,"cut":false,"hidden":false,"merged":[[0,34,0,39],[1,34,1,39],[36,0,37,2],[24,0,25,2],[22,0,23,2],[31,0,31,2],[32,0,34,2],[27,0,27,2],[28,0,29,2],[0,6,0,8],[47,0,47,1],[39,0,39,1],[41,0,42,2],[44,0,45,2],[20,0,20,3]]}
[{"$f":"COUNTA(H3:H102)","v":2},{"$f":"IF(A1>=1,LARGE(AG3:AG102,1),\"\")","v":22},{"$f":"IF(Schießkladde!F1=1,\"Gesamt dann BESTER Satz\",\"Gem. Sportordnung, Gesamt dann LETZTER Satz\")","v":"Gem. Sportordnung, Gesamt dann LETZTER Satz"},null,null,{"$f":"C44","v":2},"Pokalschießen 2024",null,null,null,null,null,null,null,null,null,null,null,null,null,null,null,null,null,"2024-03-28T12:14:05",null,null,null,null,null,null,null,null,null,null,null,null,null,null,null,null,null,null,null,null,null,0,0,null,null,null,"< Drop Downliste Vereine","Anz 10","Anz 9","Anz 8","Anz 7"]
["Verein Rang","Vereins- ergebnis","Vereinsliste",{"$f":"C40","v":4},null,"Einzel Rang","Einzel- ergebnis","Name","Vorname","Verein",1,2,3,4,5,6,7,1,2,3,4,5,6,14,15,16,17,18,19,20,"S1","S2","Ges","Bez.","Stechen",null,null,null,null,null,"Rang 2 (Spo)","Rang 2 (Spo)","Rang 1","Rang 1","Stechen","bester Satz","Rang2TE","Rang1TE",null,null,{"$f":"eindeutig(C3:C20)","v":"Schützenverein"},null,{"$f":"COUNTIF(K2:AD2,\"10\")","v":0},{"$f":"COUNTIF(K2:AD2,\"9\")","v":0},{"$f":"COUNTIF(K2:AD2,\"8\")","v":0},{"$f":"COUNTIF(K2:AD2,\"7\")","v":1}]
[{"$f":"IF(B3=\"\",\"\",_xlfn.RANK.EQ(B3,$B$3:$B$19,0))","v":1},{"$f":"IF(D3>$D$2,\"\",IF(C3=\"\",\"\",SUMIFS($AG$2:$AG$102,$J$2:$J$102,C3)))","v":0},"Schützenverein",{"$f":"IF(C3=\"\",\"\",COUNTIF(J:J,C3))","v":0},null,{"$f":"IFERROR(IF(H3=\"\",\"\",IF($F$1=1,AR3,AP3)),\"??\")","v":1},{"$f":"AG3","v":22},"a","aa","Gäste",null,null,null,null,null,null,null,1,2,3,4,5,7,null,null,null,null,null,null,null,{"$f":"IF(H3=\"\",\"\",SUM(K3:T3))","v":6},{"$f":"IF(H3=\"\",\"\",SUM(U3:AD3))","v":16},{"$f":"IF(H3=\"\",\"\",AE3+AF3)","v":22},"x",10,9,8,7,6,5,{"$f":"IFERROR((AG3*21)+(AF3*1.1)+(BA3*0.055)+(BB3*0.00275)+(BC3*0.0001375)+(BD3*0.000006875)+(AI3*0.00000034)+(AJ3*0.000000017)+(AK3*0.0000000085)+(AL3*0.0000000000425)+(AM3*0.000000000002125)+(AN3*0.00000000000625),\"\")","v":479.60001049634155},{"$f":"IF(H3=\"\",\"\",_xlfn.RANK.EQ($AU$3:$AU$103,$AU$3:$AU$103,0))","v":1},{"$f":"IFERROR((AG3*4000000000000)+(AT3*250000000000)+(AI3*500000000)+(AJ3*100000)+(AK3*1211)+(AL3*110)+(AM3*10)+(AN3*0.9),\"\")","v":92005000910522.5},{"$f":"IF(H3=\"\",\"\",_xlfn.RANK.EQ($AQ$3:$AQ$103,$AQ$3:$AQ$103,0))","v":1},{"$f":"(AI3*2000000)+(AJ3*100000)+(AK3*1211)+(AL3*110)+(AM3*10)+(AN3*0.9)","v":20910522.5},{"$f":"IF(AO3=\"\",\"\",LARGE(AE3:AF3,1))","v":16},{"$f":"SUBTOTAL(9,AO3,$AU$1)","v":479.60001049634155},{"$f":"SUBTOTAL(9,AQ3,$AV$1)","v":92005000910522.5},null,null,"Feuerwehr",null,{"$f":"COUNTIF(K3:AD3,\"10\")","v":0},{"$f":"COUNTIF(K3:AD3,\"9\")","v":0},{"$f":"COUNTIF(K3:AD3,\"8\")","v":0},{"$f":"COUNTIF(K3:AD3,\"7\")","v":1},null,null,null,{"$f":"CONCATENATE(H3,\" \",I3,\" \",J3)","v":"a aa Gäste"}]
[1,0,"Feuerwehr",0,null,2,21,"b","bb",null,null,null,null,null,null,null,null,1,2,3,4,5,6,null,null,null,null,null,null,null,6,15,21,"x",10,9,8,7,6,5,457.50000362134153,{"$f":"IF(H4=\"\",\"\",_xlfn.RANK.EQ($AU$3:$AU$103,$AU$3:$AU$103,0))","v":2},{"$f":"IFERROR((AG4*4000000000000)+(AT4*250000000000)+(AI4*500000000)+(AJ4*100000)+(AK4*1211)+(AL4*110)+(AM4*10)+(AN4*0.9),\"\")","v":87755000910522.5},{"$f":"IF(H4=\"\",\"\",_xlfn.RANK.EQ($AQ$3:$AQ$103,$AQ$3:$AQ$103,0))","v":2},{"$f":"(AI4*2000000)+(AJ4*100000)+(AK4*1211)+(AL4*110)+(AM4*10)+(AN4*0.9)","v":20910522.5},15,{"$f":"SUBTOTAL(9,AO4,$AU$1)","v":457.50000362134153},{"$f":"SUBTOTAL(9,AQ4,$AV$1)","v":87755000910522.5},null,null,"TCH",null,0,0,0,0,null,null,null,{"$f":"CONCATENATE(H4,\" \",I4,\" \",J4)","v":"b bb "}]
[1,0,"TCH",0,null,"","",null,null,null,null,null,null,null,null,null,null,null,null,null,null,null,null,null,null,null,null,null,null,null,"","","",null,null,null,null,null,null,null,"","","","",null,"",0,0,null,null,"Gäste",null,0,0,0,0,null,null,null,"  "]
["","",null,"",null,"","",null,null,null,null,null,null,null,null,null,null,null,null,null,null,null,null,null,null,null,null,null,null,null,"","","",null,null,null,null,null,null,null,"","","","",null,"",0,0,null,null,"",null,0,0,0,0,null,null,null,"  "]
["","",null,"",null,"","",null,null,null,null,null,null,null,null,null,null,null,null,null,null,null,null,null,null,null,null,null,null,null,"","","",null,null,null,null,null,null,null,"","","","",null,"",0,0,null,null,"",null,0,0,0,0,null,null,null,"  "]
["","",null,"",null,"","",null,null,null,null,null,null,null,null,null,null,null,null,null,null,null,null,null,null,null,null,null,null,null,"","","",null,null,null,null,null,null,null,"",{"$f":"IF(H8=\"\",\"\",_xlfn.RANK.EQ($AU$3:$AU$103,$AU$3:$AU$103,0))","v":""},"","",null,"",0,0,null,null,"",null,0,0,0,0,null,null,null,"  "]
["","",null,"",null,"","",null,null,null,null,null,null,null,null,null,null,null,null,null,null,null,null,null,null,null,null,null,null,null,"","","",null,null,null,null,null,null,null,"","","","",null,"",0,0,null,null,"",null,0,0,0,0,null,null,null,"  "]
["","",null,"",null,"","",null,null,null,null,null,null,null,null,null,null,null,null,null,null,null,null,null,null,null,null,null,null,null,"","","",null,null,null,null,null,null,null,"","","","",null,"",0,0,null,null,"",null,0,0,0,0,null,null,null,"  "]
["","",null,"",null,"","",null,null,null,null,null,null,null,null,null,null,null,null,null,null,null,null,null,null,null,null,null,null,null,"","","",null,null,null,null,null,null,null,"","","","",null,"",0,0,null,null,"",null,0,0,0,0,null,null,null,"  "]
["","",null,"",null,"","",null,null,null,null,null,null,null,null,null,null,null,null,null,null,null,null,null,null,null,null,null,null,null,"","","",null,null,null,null,null,null,null,"","","","",null,"",0,0,null,null,"",null,0,0,0,0,null,null,null,"  "]
["","",null,"",null,"","",null,null,null,null,null,null,null,null,null,null,null,null,null,null,null,null,null,null,null,null,null,null,null,"","","",null,null,null,null,null,null,null,"","","","",null,"",0,0,null,null,"",null,0,0,0,0,null,null,null,"  "]
["","",null,"",null,"","",null,null,null,null,null,null,null,null,null,null,null,null,null,null,null,null,null,null,null,null,null,null,null,"","","",null,null,null,null,null,null,null,"","","","",null,"",0,0,null,null,"",null,0,0,0,0,null,null,null,"  "]
["","",null,"",null,"","",null,null,null,null,null,null,null,null,null,null,null,null,null,null,null,null,null,null,null,null,null,null,null,"","","",null,null,null,null,null,null,null,"","","","",null,"",0,0,null,null,"",null,0,0,0,0,null,null,null,"  "]
["","",null,"",null,"","",null,null,null,null,null,null,null,null,null,null,null,null,null,null,null,null,null,null,null,null,null,null,null,"","","",null,null,null,null,null,null,null,"","","","",null,"",0,0,null,null,"",null,0,0,0,0,null,null,null,"  "]
["","",null,"",null,"","",null,null,null,null,null,null,null,null,null,null,null,null,null,null,null,null,null,null,null,null,null,null,null,"","","",null,null,null,null,null,null,null,"","","","",null,"",0,0,null,null,"",null,0,0,0,0,null,null,null,"  "]
["","",null,"",null,"","",null,null,null,null,null,null,null,null,null,null,null,null,null,null,null,null,null,null,null,null,null,null,null,"","","",null,null,null,null,null,null,null,"","","","",null,"",0,0,null,null,"",null,0,0,0,0,null,null,null,"  "]
["","",null,"",null,"","",null,null,null,null,null,null,null,null,null,null,null,null,null,null,null,null,null,null,null,null,null,null,null,"","","",null,null,null,null,null,null,null,"","","","",null,"",0,0,null,null,"",null,0,0,0,0,null,null,null,"  "]
[null,22,"Gäste",null,null,"","",null,null,null,null,null,null,null,null,null,null,null,null,null,null,null,null,null,null,null,null,null,null,null,"","","",null,null,null,null,null,null,null,"","","","",null,"",0,0,null,null,{"$error":"#N/A"},null,0,0,0,0,null,null,null,"  "]
["Einstellungen",null,null,null,null,"","",null,null,null,null,null,null,null,null,null,null,null,null,null,null,null,null,null,null,null,null,null,null,null,"","","",null,null,null,null,null,null,null,"","","","",null,"",0,0,null,null,{"$f":"eindeutig(C22:C39)","v":""},null,0,0,0,0,null,null,null,"  "]
[null,null,null,null,null,"","",null,null,null,null,null,null,null,null,null,null,null,null,null,null,null,null,null,null,null,null,null,null,null,"","","",null,null,null,null,null,null,null,"","","","",null,"",0,0,null,null,{"$f":"eindeutig(C23:C40)","v":4},null,0,0,0,0,null,null,null,"  "]
["C:\\Dokumente\\Schützenverein\\Pokalschießen\\",null,null,null,null,"","",null,null,null,null,null,null,null,null,null,null,null,null,null,null,null,null,null,null,null,null,null,null,null,"","","",null,null,null,null,null,null,null,"","","","",null,"",0,0,null,null,4,null,0,0,0,0,null,null,null,"  "]
[null,null,null,null,null,"","",null,null,null,null,null,null,null,null,null,null,null,null,null,null,null,null,null,null,null,null,null,null,null,"","","",null,null,null,null,null,null,null,"","","","",null,"",0,0,null,null,4,null,0,0,0,0,null,null,null,"  "]
["In diesem Pfad wird bei jedem speichern eine Datensicherung angelegt.",null,null,null,null,"","",null,null,null,null,null,null,null,null,null,null,null,null,null,null,null,null,null,null,null,null,null,null,null,"","","",null,null,null,null,null,null,null,"","","","",null,"",0,0,null,null,4,null,0,0,0,0,null,null,null,"  "]
[null,null,null,null,null,"","",null,null,null,null,null,null,null,null,null,null,null,null,null,null,null,null,null,null,null,null,null,null,null,"","","",null,null,null,null,null,null,null,"","","","",null,"",0,0,null,null,null,null,0,0,0,0,null,null,null,"  "]
[null,null,null,null,null,"","",null,null,null,null,null,null,null,null,null,null,null,null,null,null,null,null,null,null,null,null,null,null,null,"","","",null,null,null,null,null,null,null,"","","","",null,"",0,0,null,null,null,null,0,0,0,0,null,null,null,"  "]
["Speicherort:",null,null,null,null,"","",null,null,null,null,null,null,null,null,null,null,null,null,null,null,null,null,null,null,null,null,null,null,null,"","","",null,null,null,null,null,null,null,"","","","",null,"",0,0,null,null,null,null,0,0,0,0,null,null,null,"  "]
["\\",null,null,null,null,"","",null,null,null,null,null,null,null,null,null,null,null,null,null,null,null,null,null,null,null,null,null,null,null,"","","",null,null,null,null,null,null,null,"","","","",null,"",0,0,null,null,null,null,0,0,0,0,null,null,null,"  "]
[null,null,null,null,null,"","",null,null,null,null,null,null,null,null,null,null,null,null,null,null,null,null,null,null,null,null,null,null,null,"","","",null,null,null,null,null,null,null,"","","","",null,"",0,0,null,null,null,null,0,0,0,0,null,null,null,"  "]
[null,null,null,null,null,"","",null,null,null,null,null,null,null,null,null,null,null,null,null,null,null,null,null,null,null,null,null,null,null,"","","",null,null,null,null,null,null,null,"","","","",null,"",0,0,null,null,null,null,0,0,0,0,null,null,null,"  "]
["Momentaner Speicherort",null,null,null,null,"","",null,null,null,null,null,null,null,null,null,null,null,null,null,null,null,null,null,null,null,null,null,null,null,"","","",null,null,null,null,null,null,null,"","","","",null,"",0,0,null,null,null,null,0,0,0,0,null,null,null,"  "]
[{"$f":"LEFT(CELL(\"dateiname\"),SEARCH(\"[\",CELL(\"dateiname\"))-2)","v":"C:\\Dokumente\\Schützenverein\\Pokalschießen"},null,null,null,null,"","",null,null,null,null,null,null,null,null,null,null,null,null,null,null,null,null,null,null,null,null,null,null,null,"","","",null,null,null,null,null,null,null,"","","","",null,"",0,0,null,null,null,null,0,0,0,0,null,null,null,"  "]
[null,null,null,null,null,"","",null,null,null,null,null,null,null,null,null,null,null,null,null,null,null,null,null,null,null,null,null,null,null,"","","",null,null,null,null,null,null,null,"","","","",null,"",0,0,null,null,null,null,0,0,0,0,null,null,null,"  "]
[null,null,null,null,null,{"$f":"IFERROR(IF(H35=\"\",\"\",IF($F$1=1,AR35,AP35)),\"??\")","v":""},{"$f":"AG35","v":""},null,null,null,null,null,null,null,null,null,null,null,null,null,null,null,null,null,null,null,null,null,null,null,{"$f":"IF(H35=\"\",\"\",SUM(K35:T35))","v":""},{"$f":"IF(H35=\"\",\"\",SUM(U35:AD35))","v":""},{"$f":"IF(H35=\"\",\"\",AE35+AF35)","v":""},null,null,null,null,null,null,null,"","","","",null,{"$f":"IF(AO35=\"\",\"\",LARGE(AE35:AF35,1))","v":""},0,0,null,null,null,null,0,0,0,0,null,null,null,"  "]
[null,null,null,null,null,"","",null,null,null,null,null,null,null,null,null,null,null,null,null,null,null,null,null,null,null,null,null,null,null,"","","",null,null,null,null,null,null,null,"","","","",null,"",0,0,null,null,null,null,0,0,0,0,null,null,null,"  "]
["Im Protokoll werden alle geänderten Eingaben in der Schießkladde aufgezeichnet.",null,null,null,null,"","",null,null,null,null,null,null,null,null,null,null,null,null,null,null,null,null,null,null,null,null,null,null,null,"","","",null,null,null,null,null,null,null,"","","","",null,"",0,0,null,null,null,null,0,0,0,0,null,null,null,"  "]
[null,null,null,null,null,"","",null,null,null,null,null,null,null,null,null,null,null,null,null,null,null,null,null,null,null,null,null,null,null,"","","",null,null,null,null,null,null,null,"","","","",null,"",0,0,null,null,null,null,0,0,0,0,null,null,null,"  "]
[null,null,null,null,null,"","",null,null,null,null,null,null,null,null,null,null,null,null,null,null,null,null,null,null,null,null,null,null,null,"","","",null,null,null,null,null,null,null,"","","","",null,"",0,0,null,null,null,null,0,0,0,0,null,null,null,"  "]
["Mannschaftsstärke:",null,4,null,null,"","",null,null,null,null,null,null,null,null,null,null,null,null,null,null,null,null,null,null,null,null,null,null,null,"","","",null,null,null,null,null,null,null,"","","","",null,"",0,0,null,null,null,null,0,0,0,0,null,null,null,"  "]
[null,null,null,null,null,"","",null,null,null,null,null,null,null,null,null,null,null,null,null,null,null,null,null,null,null,null,null,null,null,"","","",null,null,null,null,null,null,null,"","","","",null,"",0,0,null,null,null,null,0,0,0,0,null,null,null,"  "]
["Berechnungsmodus bei Ringgleichheit in der Einzelwertung",null,null,null,null,"","",null,null,null,null,null,null,null,null,null,null,null,null,null,null,null,null,null,null,null,null,null,null,null,"","","",null,null,null,null,null,null,null,"","","","",null,"",0,0,null,null,null,null,0,0,0,0,null,null,null,"  "]
[null,null,null,null,null,"","",null,null,null,null,null,null,null,null,null,null,null,null,null,null,null,null,null,null,null,null,null,null,null,"","","",null,null,null,null,null,null,null,"","","","",null,"",0,0,null,null,null,null,0,0,0,0,null,null,null,"  "]
[null,null,2,null,null,"","",null,null,null,null,null,null,null,null,null,null,null,null,null,null,null,null,null,null,null,null,null,null,null,"","","",null,null,null,null,null,null,null,"","","","",null,"",0,0,null,null,null,null,0,0,0,0,null,null,null,"  "]
["1 = Ges. dann bester Satz\n2= Ges. dann letzter Satz dann Anz. 10, 9, 8 u. s. w. gem. DSB",null,null,null,null,"","",null,null,null,null,null,null,null,null,null,null,null,null,null,null,null,null,null,null,null,null,null,null,null,"","","",null,null,null,null,null,null,null,"","","","",null,"",0,0,null,null,null,null,0,0,0,0,null,null,null,"  "]
[null,null,null,null,null,"","",null,null,null,null,null,null,null,null,null,null,null,null,null,null,null,null,null,null,null,null,null,null,null,"","","",null,null,null,null,null,null,null,"","","","",null,"",0,0,null,null,null,null,0,0,0,0,null,null,null,"  "]
[null,null,null,null,null,"","",null,null,null,null,null,null,null,null,null,null,null,null,null,null,null,null,null,null,null,null,null,null,null,"","","",null,null,null,null,null,null,null,"","","","",null,"",0,0,null,null,null,null,0,0,0,0,null,null,null,"  "]
["Version",null,"2.3.6.3",null,null,"","",null,null,null,null,null,null,null,null,null,null,null,null,null,null,null,null,null,null,null,null,null,null,null,"","","",null,null,null,null,null,null,null,"","","","",null,"",0,0,null,null,null,null,0,0,0,0,null,null,null,"  "]
[null,null,null,null,null,"","",null,null,null,null,null,null,null,null,null,null,null,null,null,null,null,null,null,null,null,null,null,null,null,"","","",null,null,null,null,null,null,null,"","","","",null,"",0,0,null,null,null,null,0,0,0,0,null,null,null,"  "]
[null,null,null,null,null,"","",null,null,null,null,null,null,null,null,null,null,null,null,null,null,null,null,null,null,null,null,null,null,null,"","","",null,null,null,null,null,null,null,"","","","",null,"",0,0,null,null,null,null,0,0,0,0,null,null,null,"  "]
[null,null,null,null,null,"","",null,null,null,null,null,null,null,null,null,null,null,null,null,null,null,null,null,null,null,null,null,null,null,"","","",null,null,null,null,null,null,null,"","","","",null,"",0,0,null,null,null,null,0,0,0,0,null,null,null,"  "]
[null,null,null,null,null,"","",null,null,null,null,null,null,null,null,null,null,null,null,null,null,null,null,null,null,null,null,null,null,null,"","","",null,null,null,null,null,null,null,"","","","",null,"",0,0,null,null,null,null,0,0,0,0,null,null,null,"  "]
[null,null,null,null,null,"","",null,null,null,null,null,null,null,null,null,null,null,null,null,null,null,null,null,null,null,null,null,null,null,"","","",null,null,null,null,null,null,null,"","","","",null,"",0,0,null,null,null,null,0,0,0,0,null,null,null,"  "]
[null,null,null,null,null,"","",null,null,null,null,null,null,null,null,null,null,null,null,null,null,null,null,null,null,null,null,null,null,null,"","","",null,null,null,null,null,null,null,"","","","",null,"",0,0,null,null,null,null,0,0,0,0,null,null,null,"  "]
[null,null,null,null,null,"","",null,null,null,null,null,null,null,null,null,null,null,null,null,null,null,null,null,null,null,null,null,null,null,"","","",null,null,null,null,null,null,null,"","","","",null,"",0,0,null,null,null,null,0,0,0,0,null,null,null,"  "]
[null,null,null,null,null,"","",null,null,null,null,null,null,null,null,null,null,null,null,null,null,null,null,null,null,null,null,null,null,null,"","","",null,null,null,null,null,null,null,"","","","",null,"",0,0,null,null,null,null,0,0,0,0,null,null,null,"  "]
[null,null,null,null,null,"","",null,null,null,null,null,null,null,null,null,null,null,null,null,null,null,null,null,null,null,null,null,null,null,"","","",null,null,null,null,null,null,null,"","","","",null,"",0,0,null,null,null,null,0,0,0,0,null,null,null,"  "]
[null,null,null,null,null,"","",null,null,null,null,null,null,null,null,null,null,null,null,null,null,null,null,null,null,null,null,null,null,null,"","","",null,null,null,null,null,null,null,"","","","",null,"",0,0,null,null,null,null,0,0,0,0,null,null,null,"  "]
[null,null,null,null,null,"","",null,null,null,null,null,null,null,null,null,null,null,null,null,null,null,null,null,null,null,null,null,null,null,"","","",null,null,null,null,null,null,null,"","","","",null,"",0,0,null,null,null,null,0,0,0,0,null,null,null,"  "]
[null,null,null,null,null,"","",null,null,null,null,null,null,null,null,null,null,null,null,null,null,null,null,null,null,null,null,null,null,null,"","","",null,null,null,null,null,null,null,"","","","",null,"",0,0,null,null,null,null,0,0,0,0,null,null,null,"  "]
[null,null,null,null,null,"","",null,null,null,null,null,null,null,null,null,null,null,null,null,null,null,null,null,null,null,null,null,null,null,"","","",null,null,null,null,null,null,null,"","","","",null,"",0,0,null,null,null,null,0,0,0,0,null,null,null,"  "]
[null,null,null,null,null,"","",null,null,null,null,null,null,null,null,null,null,null,null,null,null,null,null,null,null,null,null,null,null,null,"","","",null,null,null,null,null,null,null,"","","","",null,"",0,0,null,null,null,null,0,0,0,0,null,null,null,"  "]
[null,null,null,null,null,"","",null,null,null,null,null,null,null,null,null,null,null,null,null,null,null,null,null,null,null,null,null,null,null,"","","",null,null,null,null,null,null,null,"","","","",null,"",0,0,null,null,null,null,0,0,0,0,null,null,null,"  "]
[null,null,null,null,null,"","",null,null,null,null,null,null,null,null,null,null,null,null,null,null,null,null,null,null,null,null,null,null,null,"","","",null,null,null,null,null,null,null,"","","","",null,"",0,0,null,null,null,null,0,0,0,0,null,null,null,"  "]
[null,null,null,null,null,"","",null,null,null,null,null,null,null,null,null,null,null,null,null,null,null,null,null,null,null,null,null,null,null,"","","",null,null,null,null,null,null,null,"","","","",null,"",0,0,null,null,null,null,0,0,0,0,null,null,null,"  "]
[null,null,null,null,null,"","",null,null,null,null,null,null,null,null,null,null,null,null,null,null,null,null,null,null,null,null,null,null,null,"","","",null,null,null,null,null,null,null,"","","","",null,"",0,0,null,null,null,null,0,0,0,0,null,null,null,"  "]
[null,null,null,null,null,{"$f":"IFERROR(IF(H67=\"\",\"\",IF($F$1=1,AR67,AP67)),\"??\")","v":""},{"$f":"AG67","v":""},null,null,null,null,null,null,null,null,null,null,null,null,null,null,null,null,null,null,null,null,null,null,null,{"$f":"IF(H67=\"\",\"\",SUM(K67:T67))","v":""},{"$f":"IF(H67=\"\",\"\",SUM(U67:AD67))","v":""},{"$f":"IF(H67=\"\",\"\",AE67+AF67)","v":""},null,null,null,null,null,null,null,"","","","",null,{"$f":"IF(AO67=\"\",\"\",LARGE(AE67:AF67,1))","v":""},0,0,null,null,null,null,{"$f":"COUNTIF(K67:AD67,\"10\")","v":0},{"$f":"COUNTIF(K67:AD67,\"9\")","v":0},{"$f":"COUNTIF(K67:AD67,\"8\")","v":0},{"$f":"COUNTIF(K67:AD67,\"7\")","v":0},null,null,null,"  "]
[null,null,null,null,null,"","",null,null,null,null,null,null,null,null,null,null,null,null,null,null,null,null,null,null,null,null,null,null,null,"","","",null,null,null,null,null,null,null,{"$f":"IFERROR((AG68*21)+(AF68*1.1)+(BA68*0.055)+(BB68*0.00275)+(BC68*0.0001375)+(BD68*0.000006875)+(AI68*0.00000034)+(AJ68*0.000000017)+(AK68*0.0000000085)+(AL68*0.0000000000425)+(AM68*0.000000000002125)+(AN68*0.00000000000625),\"\")","v":""},{"$f":"IF(H68=\"\",\"\",_xlfn.RANK.EQ($AU$3:$AU$103,$AU$3:$AU$103,0))","v":""},{"$f":"IFERROR((AG68*4000000000000)+(AT68*250000000000)+(AI68*500000000)+(AJ68*100000)+(AK68*1211)+(AL68*110)+(AM68*10)+(AN68*0.9),\"\")","v":""},{"$f":"IF(H68=\"\",\"\",_xlfn.RANK.EQ($AQ$3:$AQ$103,$AQ$3:$AQ$103,0))","v":""},null,"",{"$f":"SUBTOTAL(9,AO68,$AU$1)","v":0},{"$f":"SUBTOTAL(9,AQ68,$AV$1)","v":0},null,null,null,null,0,0,0,0,null,null,null,{"$f":"CONCATENATE(H68,\" \",I68,\" \",J68)","v":"  "}]
[null,null,null,null,null,"","",null,null,null,null,null,null,null,null,null,null,null,null,null,null,null,null,null,null,null,null,null,null,null,"","","",null,null,null,null,null,null,null,"","","","",null,"",0,0,null,null,null,null,0,0,0,0,null,null,null,"  "]
[null,null,null,null,null,"","",null,null,null,null,null,null,null,null,null,null,null,null,null,null,null,null,null,null,null,null,null,null,null,"","","",null,null,null,null,null,null,null,"","","","",null,"",0,0,null,null,null,null,0,0,0,0,null,null,null,"  "]
[null,null,null,null,null,"","",null,null,null,null,null,null,null,null,null,null,null,null,null,null,null,null,null,null,null,null,null,null,null,"","","",null,null,null,null,null,null,null,"","","","",null,"",0,0,null,null,null,null,0,0,0,0,null,null,null,"  "]
[null,null,null,null,null,"","",null,null,null,null,null,null,null,null,null,null,null,null,null,null,null,null,null,null,null,null,null,null,null,"","","",null,null,null,null,null,null,null,"","","","",null,"",0,0,null,null,null,null,0,0,0,0,null,null,null,"  "]
[null,null,null,null,null,"","",null,null,null,null,null,null,null,null,null,null,null,null,null,null,null,null,null,null,null,null,null,null,null,"","","",null,null,null,null,null,null,null,"","","","",null,"",0,0,null,null,null,null,0,0,0,0,null,null,null,"  "]
[null,null,null,null,null,"","",null,null,null,null,null,null,null,null,null,null,null,null,null,null,null,null,null,null,null,null,null,null,null,"","","",null,null,null,null,null,null,null,"","","","",null,"",0,0,null,null,null,null,0,0,0,0,null,null,null,"  "]
[null,null,null,null,null,"","",null,null,null,null,null,null,null,null,null,null,null,null,null,null,null,null,null,null,null,null,null,null,null,"","","",null,null,null,null,null,null,null,"","","","",null,"",0,0,null,null,null,null,0,0,0,0,null,null,null,"  "]
[null,null,null,null,null,"","",null,null,null,null,null,null,null,null,null,null,null,null,null,null,null,null,null,null,null,null,null,null,null,"","","",null,null,null,null,null,null,null,"","","","",null,"",0,0,null,null,null,null,0,0,0,0,null,null,null,"  "]
[null,null,null,null,null,"","",null,null,null,null,null,null,null,null,null,null,null,null,null,null,null,null,null,null,null,null,null,null,null,"","","",null,null,null,null,null,null,null,"","","","",null,"",0,0,null,null,null,null,0,0,0,0,null,null,null,"  "]
[null,null,null,null,null,"","",null,null,null,null,null,null,null,null,null,null,null,null,null,null,null,null,null,null,null,null,null,null,null,"","","",null,null,null,null,null,null,null,"","","","",null,"",0,0,null,null,null,null,0,0,0,0,null,null,null,"  "]
[null,null,null,null,null,"","",null,null,null,null,null,null,null,null,null,null,null,null,null,null,null,null,null,null,null,null,null,null,null,"","","",null,null,null,null,null,null,null,"","","","",null,"",0,0,null,null,null,null,0,0,0,0,null,null,null,"  "]
[null,null,null,null,null,"","",null,null,null,null,null,null,null,null,null,null,null,null,null,null,null,null,null,null,null,null,null,null,null,"","","",null,null,null,null,null,null,null,"","","","",null,"",0,0,null,null,null,null,0,0,0,0,null,null,null,"  "]
[null,null,null,null,null,"","",null,null,null,null,null,null,null,null,null,null,null,null,null,null,null,null,null,null,null,null,null,null,null,"","","",null,null,null,null,null,null,null,"","","","",null,"",0,0,null,null,null,null,0,0,0,0,null,null,null,"  "]
[null,null,null,null,null,"","",null,null,null,null,null,null,null,null,null,null,null,null,null,null,null,null,null,null,null,null,null,null,null,"","","",null,null,null,null,null,null,null,"","","","",null,"",0,0,null,null,null,null,0,0,0,0,null,null,null,"  "]
[null,null,null,null,null,"","",null,null,null,null,null,null,null,null,null,null,null,null,null,null,null,null,null,null,null,null,null,null,null,"","","",null,null,null,null,null,null,null,"","","","",null,"",0,0,null,null,null,null,0,0,0,0,null,null,null,"  "]
[null,null,null,null,null,"","",null,null,null,null,null,null,null,null,null,null,null,null,null,null,null,null,null,null,null,null,null,null,null,"","","",null,null,null,null,null,null,null,"","","","",null,"",0,0,null,null,null,null,0,0,0,0,null,null,null,"  "]
[null,null,null,null,null,"","",null,null,null,null,null,null,null,null,null,null,null,null,null,null,null,null,null,null,null,null,null,null,null,"","","",null,null,null,null,null,null,null,"","","","",null,"",0,0,null,null,null,null,0,0,0,0,null,null,null,"  "]
[null,null,null,null,null,"","",null,null,null,null,null,null,null,null,null,null,null,null,null,null,null,null,null,null,null,null,null,null,null,"","","",null,null,null,null,null,null,null,"","","","",null,"",0,0,null,null,null,null,0,0,0,0,null,null,null,"  "]
[null,null,null,null,null,"","",null,null,null,null,null,null,null,null,null,null,null,null,null,null,null,null,null,null,null,null,null,null,null,"","","",null,null,null,null,null,null,null,"","","","",null,"",0,0,null,null,null,null,0,0,0,0,null,null,null,"  "]
[null,null,null,null,null,"","",null,null,null,null,null,null,null,null,null,null,null,null,null,null,null,null,null,null,null,null,null,null,null,"","","",null,null,null,null,null,null,null,"","","","",null,"",0,0,null,null,null,null,0,0,0,0,null,null,null,"  "]
[null,null,null,null,null,"","",null,null,null,null,null,null,null,null,null,null,null,null,null,null,null,null,null,null,null,null,null,null,null,"","","",null,null,null,null,null,null,null,"","","","",null,"",0,0,null,null,null,null,0,0,0,0,null,null,null,"  "]
[null,null,null,null,null,"","",null,null,null,null,null,null,null,null,null,null,null,null,null,null,null,null,null,null,null,null,null,null,null,"","","",null,null,null,null,null,null,null,"","","","",null,"",0,0,null,null,null,null,0,0,0,0,null,null,null,"  "]
[null,null,null,null,null,"","",null,null,null,null,null,null,null,null,null,null,null,null,null,null,null,null,null,null,null,null,null,null,null,"","","",null,null,null,null,null,null,null,"","","","",null,"",0,0,null,null,null,null,0,0,0,0,null,null,null,"  "]
[null,null,null,null,null,"","",null,null,null,null,null,null,null,null,null,null,null,null,null,null,null,null,null,null,null,null,null,null,null,"","","",null,null,null,null,null,null,null,"","","","",null,"",0,0,null,null,null,null,0,0,0,0,null,null,null,"  "]
[null,null,null,null,null,"","",null,null,null,null,null,null,null,null,null,null,null,null,null,null,null,null,null,null,null,null,null,null,null,"","","",null,null,null,null,null,null,null,"","","","",null,"",0,0,null,null,null,null,0,0,0,0,null,null,null,"  "]
[null,null,null,null,null,"","",null,null,null,null,null,null,null,null,null,null,null,null,null,null,null,null,null,null,null,null,null,null,null,"","","",null,null,null,null,null,null,null,"","","","",null,"",0,0,null,null,null,null,0,0,0,0,null,null,null,"  "]
[null,null,null,null,null,"","",null,null,null,null,null,null,null,null,null,null,null,null,null,null,null,null,null,null,null,null,null,null,null,"","","",null,null,null,null,null,null,null,"","","","",null,"",0,0,null,null,null,null,0,0,0,0,null,null,null,"  "]
[null,null,null,null,null,"","",null,null,null,null,null,null,null,null,null,null,null,null,null,null,null,null,null,null,null,null,null,null,null,"","","",null,null,null,null,null,null,null,"","","","",null,"",0,0,null,null,null,null,0,0,0,0,null,null,null,"  "]
[null,null,null,null,null,"","",null,null,null,null,null,null,null,null,null,null,null,null,null,null,null,null,null,null,null,null,null,null,null,"","","",null,null,null,null,null,null,null,"","","","",null,"",0,0,null,null,null,null,0,0,0,0,null,null,null,"  "]
[null,null,null,null,null,"","",null,null,null,null,null,null,null,null,null,null,null,null,null,null,null,null,null,null,null,null,null,null,null,"","","",null,null,null,null,null,null,null,"","","","",null,"",0,0,null,null,null,null,0,0,0,0,null,null,null,"  "]
[null,null,null,null,null,"","",null,null,null,null,null,null,null,null,null,null,null,null,null,null,null,null,null,null,null,null,null,null,null,"","",{"$f":"IF(H99=\"\",\"\",AE99+AF99)","v":""},null,null,null,null,null,null,null,"","","","",null,"",0,0,null,null,null,null,0,0,0,0,null,null,null,"  "]
[null,null,null,null,null,"","",null,null,null,null,null,null,null,null,null,null,null,null,null,null,null,null,null,null,null,null,null,null,null,"","","",null,null,null,null,null,null,null,"","","","",null,"",0,0,null,null,null,null,0,0,0,0,null,null,null,"  "]
[null,null,null,null,null,"","",null,null,null,null,null,null,null,null,null,null,null,null,null,null,null,null,null,null,null,null,null,null,null,"","","",null,null,null,null,null,null,null,"","","","",null,"",0,0,null,null,null,null,0,0,0,0,null,null,null,"  "]
[null,null,null,null,null,"","",null,null,null,null,null,null,null,null,null,null,null,null,null,null,null,null,null,null,null,null,null,null,null,"","","",null,null,null,null,null,null,null,"","","","",null,"",0,0,null,null,null,null,0,0,0,0,null,null,null,"  "]

{"sheet":"Mannschaftswertung","index":1,"n_rows":21,"n_cols":3,"rows_kept":21,"cut":false,"hidden":false,"merged":[[0,0,0,2]]}
[{"$f":"Schießkladde!G1","v":"Pokalschießen 2024"}]
["Mannschaftswertung"]
["Platz","Ring","Verein"]
["",""]
["",""]
["",""]
["",""]
["",""]
["",""]
["",""]
["",""]
["",""]
["",""]
["",""]
["",""]
["",""]
["",""]
["",""]
["",""]
["",""]
[null,0,"Gäste"]

{"sheet":"Einzelwertung ","index":2,"n_rows":104,"n_cols":14,"rows_kept":104,"cut":false,"hidden":false,"merged":[[1,1,1,5],[2,8,2,13],[0,1,0,8]]}
[null,{"$f":"Schießkladde!G1","v":"Pokalschießen 2024"}]
[null,"Einzelwertung"]
[null,{"$f":"IF(Schießkladde!F1=1,\"Gesamt dann bester Satz\",\"Gem. Sportordnung, Gesamt dann letzter Satz\")","v":"Gem. Sportordnung, Gesamt dann letzter Satz"},null,null,null,null,null,null,"Stechschüsse"]
[null,"Platz","Name","Vorname","Mannsch.","S1","S2","Ges.","St1","St2","St3","St4","St5","St6"]
[1,"",null,null,null,"","",""]
[2,"",null,null,null,"","",""]
[3,"",null,null,null,"","",""]
[4,"",null,null,null,"","",""]
[5,"",null,null,null,"","",""]
[6,"",null,null,null,"","",""]
[7,"",null,null,null,"","",""]
[8,"",null,null,null,"","",""]
[9,"",null,null,null,"","",""]
[10,"",null,null,null,"","",""]
[11,"",null,null,null,"","",""]
[12,"",null,null,null,"","",""]
[13,"",null,null,null,"","",""]
[14,"",null,null,null,"","",""]
[15,"",null,null,null,"","",""]
[16,"",null,null,null,"","",""]
[17,"",null,null,null,"","",""]
[18,"",null,null,null,"","",""]
[19,"",null,null,null,"","",""]
[20,"",null,null,null,"","",""]
[21,"",null,null,null,"","",""]
[22,"",null,null,null,"","",""]
[23,"",null,null,null,"","",""]
[24,"",null,null,null,"","",""]
[25,"",null,null,null,"","",""]
[26,"",null,null,null,"","",""]
[27,"",null,null,null,"","",""]
[28,"",null,null,null,"","",""]
[29,"",null,null,null,"","",""]
[30,"",null,null,null,"","",""]
[31,"",null,null,null,"","",""]
[32,"",null,null,null,"","",""]
[33,"",null,null,null,"","",""]
[34,"",null,null,null,"","",""]
[35,"",null,null,null,"","",""]
[36,"",null,null,null,"","",""]
[37,"",null,null,null,"","",""]
[38,"",null,null,null,"","",""]
[39,"",null,null,null,"","",""]
[40,"",null,null,null,"","",""]
[41,"",null,null,null,"","",""]
[42,"",null,null,null,"","",""]
[43,"",null,null,null,"","",""]
[44,"",null,null,null,"","",""]
[45,"",null,null,null,"","",""]
[46,"",null,null,null,"","",""]
[47,"",null,null,null,"","",""]
[48,"",null,null,null,"","",""]
[49,"",null,null,null,"","",""]
[50,"",null,null,null,"","",""]
[51,"",null,null,null,"","",""]
[52,"",null,null,null,"","",""]
[53,"",null,null,null,"","",""]
[54,"",null,null,null,"","",""]
[55,"",null,null,null,"","",""]
[56,"",null,null,null,"","",""]
[57,"",null,null,null,"","",""]
[58,"",null,null,null,"","",""]
[59,"",null,null,null,"","",""]
[60,"",null,null,null,"","",""]
[61,"",null,null,null,"","",""]
[62,"",null,null,null,"","",""]
[63,"",null,null,null,"","",""]
[64,"",null,null,null,"","",""]
[65,"",null,null,null,"","",""]
[66,"",null,null,null,"","",""]
[67,"",null,null,null,"","",""]
[68,"",null,null,null,"","",""]
[69,"",null,null,null,"","",""]
[70,"",null,null,null,"","",""]
[71,"",null,null,null,"","",""]
[72,"",null,null,null,"","",""]
[73,"",null,null,null,"","",""]
[74,"",null,null,null,"","",""]
[75,"",null,null,null,"","",""]
[76,"",null,null,null,"","",""]
[77,"",null,null,null,"","",""]
[78,"",null,null,null,"","",""]
[79,"",null,null,null,"","",""]
[80,"",null,null,null,"","",""]
[81,"",null,null,null,"","",""]
[82,"",null,null,null,"","",""]
[83,"",null,null,null,"","",""]
[84,"",null,null,null,"","",""]
[85,"",null,null,null,"","",""]
[86,"",null,null,null,"","",""]
[87,"",null,null,null,"","",""]
[88,"",null,null,null,"","",""]
[89,"",null,null,null,"","",""]
[90,"",null,null,null,"","",""]
[91,"",null,null,null,"","",""]
[92,"",null,null,null,"","",""]
[93,"",null,null,null,"","",""]
[94,"",null,null,null,"","",""]
[95,"",null,null,null,"","",""]
[96,"",null,null,null,"","",""]
[97,"",null,null,null,"","",""]
[98,"",null,null,null,"","",""]
[99,"",null,null,null,"","",""]
[100,"",null,null,null,"","",""]

{"sheet":"GefilterteRangliste","index":3,"n_rows":103,"n_cols":19,"rows_kept":103,"cut":false,"hidden":false,"merged":[[2,18,2,23]]}
["Rangliste",null,{"$f":"IF(H1=I1,E3,\"\")","v":""},null,{"$f":"Schießkladde!G1","v":"Pokalschießen 2024"},null,null,{"$f":"COUNTA(C3:C104)","v":5},{"$f":"COUNTIFS(E3:E104,E3)","v":1}]
[]
["Einzel Rang","Einzel- ergebnis","Name","Vorname","Verein",1,2,3,4,5,6,7,8,9,10,"S1","S2","Ges","Stechen"]
[1,40,"tt","t",2,2,2,2,2,2,1,2,2,2,2,21,19,40]
[2,39,"bb","b",1,2,2,2,2,2,2,2,2,2,2,19,20,39,2]
[3,39,"aa","a",1,2,2,2,2,2,2,2,2,2,2,19,20,39,1]
[4,39,"vv","v",3,2,2,2,2,2,1,2,2,2,2,20,19,39]
["","",null,null,null,null,null,null,null,null,null,null,null,null,null,"","",""]
["","",null,null,null,null,null,null,null,null,null,null,null,null,null,"","",""]
["","",null,null,null,null,null,null,null,null,null,null,null,null,null,"","",""]
["","",null,null,null,null,null,null,null,null,null,null,null,null,null,"","",""]
["","",null,null,null,null,null,null,null,null,null,null,null,null,null,"","",""]
["","",null,null,null,null,null,null,null,null,null,null,null,null,null,"","",""]
["","",null,null,null,null,null,null,null,null,null,null,null,null,null,"","",""]
["","",null,null,null,null,null,null,null,null,null,null,null,null,null,"","",""]
["","",null,null,null,null,null,null,null,null,null,null,null,null,null,"","",""]
["","",null,null,null,null,null,null,null,null,null,null,null,null,null,"","",""]
["","",null,null,null,null,null,null,null,null,null,null,null,null,null,"","",""]
["","",null,null,null,null,null,null,null,null,null,null,null,null,null,"","",""]
["","",null,null,null,null,null,null,null,null,null,null,null,null,null,"","",""]
["","",null,null,null,null,null,null,null,null,null,null,null,null,null,"","",""]
["","",null,null,null,null,null,null,null,null,null,null,null,null,null,"","",""]
["","",null,null,null,null,null,null,null,null,null,null,null,null,null,"","",""]
["","",null,null,null,null,null,null,null,null,null,null,null,null,null,"","",""]
["","",null,null,null,null,null,null,null,null,null,null,null,null,null,"","",""]
["","",null,null,null,null,null,null,null,null,null,null,null,null,null,"","",""]
["","",null,null,null,null,null,null,null,null,null,null,null,null,null,"","",""]
["","",null,null,null,null,null,null,null,null,null,null,null,null,null,"","",""]
["","",null,null,null,null,null,null,null,null,null,null,null,null,null,"","",""]
["","",null,null,null,null,null,null,null,null,null,null,null,null,null,"","",""]
["","",null,null,null,null,null,null,null,null,null,null,null,null,null,"","",""]
["","",null,null,null,null,null,null,null,null,null,null,null,null,null,"","",""]
["","",null,null,null,null,null,null,null,null,null,null,null,null,null,"","",""]
["","",null,null,null,null,null,null,null,null,null,null,null,null,null,"","",""]
["","",null,null,null,null,null,null,null,null,null,null,null,null,null,"","",""]
["","",null,null,null,null,null,null,null,null,null,null,null,null,null,"","",""]
["","",null,null,null,null,null,null,null,null,null,null,null,null,null,"","",""]
["","",null,null,null,null,null,null,null,null,null,null,null,null,null,"","",""]
["","",null,null,null,null,null,null,null,null,null,null,null,null,null,"","",""]
["","",null,null,null,null,null,null,null,null,null,null,null,null,null,"","",""]
["","",null,null,null,null,null,null,null,null,null,null,null,null,null,"","",""]
["","",null,null,null,null,null,null,null,null,null,null,null,null,null,"","",""]
["","",null,null,null,null,null,null,null,null,null,null,null,null,null,"","",""]
["","",null,null,null,null,null,null,null,null,null,null,null,null,null,"","",""]
["","",null,null,null,null,null,null,null,null,null,null,null,null,null,"","",""]
["","",null,null,null,null,null,null,null,null,null,null,null,null,null,"","",""]
["","",null,null,null,null,null,null,null,null,null,null,null,null,null,"","",""]
["","",null,null,null,null,null,null,null,null,null,null,null,null,null,"","",""]
["","",null,null,null,null,null,null,null,null,null,null,null,null,null,"","",""]
["","",null,null,null,null,null,null,null,null,null,null,null,null,null,"","",""]
["","",null,null,null,null,null,null,null,null,null,null,null,null,null,"","",""]
["","",null,null,null,null,null,null,null,null,null,null,null,null,null,"","",""]
["","",null,null,null,null,null,null,null,null,null,null,null,null,null,"","",""]
["","",null,null,null,null,null,null,null,null,null,null,null,null,null,"","",""]
["","",null,null,null,null,null,null,null,null,null,null,null,null,null,"","",""]
["","",null,null,null,null,null,null,null,null,null,null,null,null,null,"","",""]
["","",null,null,null,null,null,null,null,null,null,null,null,null,null,"","",""]
["","",null,null,null,null,null,null,null,null,null,null,null,null,null,"","",""]
["","",null,null,null,null,null,null,null,null,null,null,null,null,null,"","",""]
["","",null,null,null,null,null,null,null,null,null,null,null,null,null,"","",""]
["","",null,null,null,null,null,null,null,null,null,null,null,null,null,"","",""]
["","",null,null,null,null,null,null,null,null,null,null,null,null,null,"","",""]
["","",null,null,null,null,null,null,null,null,null,null,null,null,null,"","",""]
["","",null,null,null,null,null,null,null,null,null,null,null,null,null,"","",""]
["","",null,null,null,null,null,null,null,null,null,null,null,null,null,"","",""]
["","",null,null,null,null,null,null,null,null,null,null,null,null,null,"","",""]
["","",null,null,null,null,null,null,null,null,null,null,null,null,null,"","",""]
["","",null,null,null,null,null,null,null,null,null,null,null,null,null,"","",""]
["","",null,null,null,null,null,null,null,null,null,null,null,null,null,"","",""]
["","",null,null,null,null,null,null,null,null,null,null,null,null,null,"","",""]
["","",null,null,null,null,null,null,null,null,null,null,null,null,null,"","",""]
["","",null,null,null,null,null,null,null,null,null,null,null,null,null,"","",""]
["","",null,null,null,null,null,null,null,null,null,null,null,null,null,"","",""]
["","",null,null,null,null,null,null,null,null,null,null,null,null,null,"","",""]
["","",null,null,null,null,null,null,null,null,null,null,null,null,null,"","",""]
["","",null,null,null,null,null,null,null,null,null,null,null,null,null,"","",""]
["","",null,null,null,null,null,null,null,null,null,null,null,null,null,"","",""]
["","",null,null,null,null,null,null,null,null,null,null,null,null,null,"","",""]
["","",null,null,null,null,null,null,null,null,null,null,null,null,null,"","",""]
["","",null,null,null,null,null,null,null,null,null,null,null,null,null,"","",""]
["","",null,null,null,null,null,null,null,null,null,null,null,null,null,"","",""]
["","",null,null,null,null,null,null,null,null,null,null,null,null,null,"","",""]
["","",null,null,null,null,null,null,null,null,null,null,null,null,null,"","",""]
["","",null,null,null,null,null,null,null,null,null,null,null,null,null,"","",""]
["","",null,null,null,null,null,null,null,null,null,null,null,null,null,"","",""]
["","",null,null,null,null,null,null,null,null,null,null,null,null,null,"","",""]
["","",null,null,null,null,null,null,null,null,null,null,null,null,null,"","",""]
["","",null,null,null,null,null,null,null,null,null,null,null,null,null,"","",""]
["","",null,null,null,null,null,null,null,null,null,null,null,null,null,"","",""]
["","",null,null,null,null,null,null,null,null,null,null,null,null,null,"","",""]
["","",null,null,null,null,null,null,null,null,null,null,null,null,null,"","",""]
["","",null,null,null,null,null,null,null,null,null,null,null,null,null,"","",""]
["","",null,null,null,null,null,null,null,null,null,null,null,null,null,"","",""]
["","",null,null,null,null,null,null,null,null,null,null,null,null,null,"","",""]
["","",null,null,null,null,null,null,null,null,null,null,null,null,null,"","",""]
["","",null,null,null,null,null,null,null,null,null,null,null,null,null,"","",""]
["","",null,null,null,null,null,null,null,null,null,null,null,null,null,"","",""]
["","",null,null,null,null,null,null,null,null,null,null,null,null,null,"","",""]
["","",null,null,null,null,null,null,null,null,null,null,null,null,null,"","",""]
["","",null,null,null,null,null,null,null,null,null,null,null,null,null,"","",""]
["","",null,null,null,null,null,null,null,null,null,null,null,null,null,"","",""]
["","",null,null,null,null,null,null,null,null,null,null,null,null,null,"","",""]
["","",null,null,null,null,null,null,null,null,null,null,null,null,null,"","",""]

{"sheet":"Info","index":4,"n_rows":3,"n_cols":5,"rows_kept":3,"cut":false,"hidden":false,"merged":[]}
["Zelle","Teilnehmer","vorher","neu","Änderungszeitpunkt"]
["W3","a aa Gäste",6,7,"2025-09-29T12:36:48"]
["AN4","b bb ",null,5,"2025-09-29T12:37:23"]